[Event "84th ESP-ch 2019"]
[Site "Marbella"]
[Date "2019.11.23"]
[Round "8.29"]
[White "Rodriguez Redondo, Adhara"]
[Black "Romero Calduch, Sergio"]
[Result "0-1"]
[ECO "B10"]
[WhiteElo "2199"]
[BlackElo "2130"]
[Annotator "ChessBase"]
[PlyCount "84"]
[EventDate "2019.11.16"]
[EventType "swiss"]
[EventCountry "ESP"]
[SourceTitle "playchess.com"]
[Source "ChessBase"]
[SourceQuality "1"]
[TimeControl "5400+30"]

1. e4 {[%emt 0:00:00]} c6 {[%emt 0:00:00]} 2. Nf3 {[%emt 0:00:00]} d5 {[%emt 0:00:05]} 3. exd5 {[%emt 0:00:00]} cxd5 {[%emt 0:00:09]} 4. Ne5 {[%emt 0:00:00]} Qb6 {[%emt 0:00:06]} 5. d4 {[%emt 0:02:34]} Nc6 {[%emt 0:00:07]} 6. Nxc6 {[%emt 0:05:17]} bxc6 {[%emt 0:00:07]} 7. c3 {[%emt 0:01:08]} a5 {[%emt 0:00:25]} 8. Bd3 {[%emt 0:02:21]} Ba6 {[%emt 0:00:22]} 9. O-O {[%emt 0:01:38]} Bxd3 {[%emt 0:04:27]} 10. Qxd3 {[%emt 0:00:03]} Nf6 {[%emt 0:00:18]} 11. Nd2 {[%emt 0:01:27]} e6 {[%emt 0:02:08]} 12. Nf3 {[%emt 0:01:05]} a4 {[%emt 0:22:03]} 13. Rb1 {[%emt 0:05:39]} Bd6 {[%emt 0:05:09]} 14. Ne5 {[%emt 0:06:32]} c5 {[%emt 0:06:55]} 15. dxc5 {[%emt 0:12:50]} Bxc5 {[%emt 0:08:32]} 16. b4 {[%emt 0:03:19]} Bd6 {[%emt 0:03:52]} 17. Be3 {[%emt 0:02:56]} Qc7 {[%emt 0:08:15]} 18. Qb5+ {[%emt 0:05:30]} Nd7 {[%emt 0:00:46]} 19. Nxd7 {[%emt 0:04:15]} Qxd7 {[%emt 0:00:09]} 20. Qd3 {[%emt 0:02:03]} Rc8 {[%emt 0:04:56]} 21. g3 {[%emt 0:04:09]} O-O {[%emt 0:01:18]} 22. f4 {[%emt 0:04:12]} Rc4 {[%emt 0:03:33]} 23. Bd4 {[%emt 0:08:02]} Rfc8 {[%emt 0:01:22]} 24. Rf3 {[%emt 0:04:11]} Bb8 {[%emt 0:03:33]} 25. Qe3 {[%emt 0:05:30]} f6 {[%emt 0:06:02]} 26. Rbf1 {[%emt 0:06:45]} Bd6 {[%emt 0:03:37]} 27. Qd2 {[%emt 0:03:03]} e5 {[%emt 0:07:45]} 28. fxe5 {[%emt 0:00:14]} fxe5 {[%emt 0:00:09]} 29. Bf2 {[%emt 0:02:04]} d4 {[%emt 0:02:08]} 30. cxd4 {[%emt 0:03:46]} Bxb4 {[%emt 0:00:07]} 31. Qg5 {[%emt 0:01:49]} exd4 {[%emt 0:00:55]} 32. Rf5 {[%emt 0:00:57]} Be7 {[%emt 0:00:38]} 33. Qg4 {[%emt 0:00:43]} Bf6 {[%emt 0:00:36]} 34. Qf3 {[%emt 0:01:35]} Rc1 {[%emt 0:02:39]} 35. Rxc1 {[%emt 0:00:58]} Rxc1+ {[%emt 0:00:04]} 36. Kg2 {[%emt 0:00:01]} Qc6 {[%emt 0:01:03]} 37. Rd5 {[%emt 0:00:39]} Rc3 {[%emt 0:01:03]} 38. Qe4 {[%emt 0:01:06]} Rc5 {[%emt 0:00:20]} 39. Rxd4 {[%emt 0:00:28]} Bxd4 {[%emt 0:00:11]} 40. Qxc6 {[%emt 0:00:05]} Rxc6 {[%emt 0:00:09]} 41. Bxd4 {[%emt 0:00:03]} Rc2+ {[%emt 0:00:07]} 42. Kf3 {[%emt 0:00:06]} Rxa2 {[%emt 0:00:09]} 0-1

[Event "84th ESP-ch 2019"]
[Site "Marbella"]
[Date "2019.11.23"]
[Round "8.30"]
[White "Sanjuan Garcia, Miguel"]
[Black "Martin Carmona, Gaston Manuel"]
[Result "1-0"]
[ECO "B75"]
[WhiteElo "2021"]
[BlackElo "2304"]
[Annotator "ChessBase"]
[PlyCount "101"]
[EventDate "2019.11.16"]
[EventType "swiss"]
[EventCountry "ESP"]
[SourceTitle "playchess.com"]
[Source "ChessBase"]
[SourceQuality "1"]
[TimeControl "5400+30"]

1. e4 {[%emt 0:00:00]} c5 {[%emt 0:00:58]} 2. Nf3 {[%emt 0:00:00]} d6 {[%emt 0:01:04]} 3. d4 {[%emt 0:00:00]} Nf6 {[%emt 0:00:18]} 4. Nc3 {[%emt 0:00:00]} cxd4 {[%emt 0:00:12]} 5. Nxd4 {[%emt 0:00:00]} g6 {[%emt 0:00:38]} 6. Be3 {[%emt 0:00:00]} Bg7 {[%emt 0:01:04]} 7. f3 {[%emt 0:00:00]} Nc6 {[%emt 0:00:28]} 8. Bc4 {[%emt 0:00:15]} O-O {[%emt 0:01:10]} 9. Bb3 {[%emt 0:00:02]} Bd7 {[%emt 0:01:03]} 10. h4 {[%emt 0:00:21]} h5 {[%emt 0:01:23]} 11. Qd2 {[%emt 0:00:05]} Rc8 {[%emt 0:00:06]} 12. O-O-O {[%emt 0:00:32]} Ne5 {[%emt 0:00:54]} 13. Bg5 {[%emt 0:00:03]} Rc5 {[%emt 0:00:24]} 14. g4 {[%emt 0:00:15]} hxg4 {[%emt 0:06:19]} 15. h5 {[%emt 0:00:09]} Nxh5 {[%emt 0:01:26]} 16. Nd5 {[%emt 0:00:07]} Re8 {[%emt 0:02:08]} 17. fxg4 {[%emt 0:05:02]} Bxg4 {[%emt 0:08:44]} 18. Rdg1 {[%emt 0:25:04]} Rxd5 {[%emt 0:04:51]} 19. Bxd5 {[%emt 0:00:37]} Qb6 {[%emt 0:00:37]} 20. c3 {[%emt 0:04:13]} e6 {[%emt 0:05:10]} 21. Bb3 {[%emt 0:00:03]} Rc8 {[%emt 0:14:49]} 22. Kb1 {[%emt 0:10:20]} a5 {[%emt 0:17:11]} 23. Rxg4 {[%emt 0:10:48]} Nxg4 {[%emt 0:01:16]} 24. Nxe6 {[%emt 0:00:13]} Ne5 {[%emt 0:06:31]} 25. Nxg7 {[%emt 0:08:28]} Kxg7 {[%emt 0:01:45]} 26. Be3 {[%emt 0:01:06]} Qc6 {[%emt 0:03:28]} 27. Bd5 {[%emt 0:00:03]} Qd7 {[%emt 0:01:04]} 28. Bd4 {[%emt 0:06:19]} Qe7 {[%emt 0:01:16]} 29. c4 {[%emt 0:08:25]} a4 {[%emt 0:02:53]} 30. Qb4 {[%emt 0:08:41]} Nf4 {[%emt 0:07:13]} 31. Qd2 {[%emt 0:02:02]} Qf6 {[%emt 0:02:01]} 32. Qh2 {[%emt 0:00:58]} Nh5 {[%emt 0:00:16]} 33. c5 {[%emt 0:00:37]} Rxc5 {[%emt 0:00:09]} 34. Bxc5 {[%emt 0:00:03]} dxc5 {[%emt 0:00:02]} 35. Bxb7 {[%emt 0:01:09]} Nd3 {[%emt 0:01:37]} 36. a3 {[%emt 0:03:42]} c4 {[%emt 0:01:42]} 37. Qd2 {[%emt 0:01:31]} Nhf4 {[%emt 0:01:22]} 38. Bd5 {[%emt 0:00:53]} Nxd5 {[%emt 0:01:00]} 39. exd5 {[%emt 0:00:32]} Qf3 {[%emt 0:00:55]} 40. Qh6+ {[%emt 0:03:28]} Kf6 {[%emt 0:00:01]} 41. Qh4+ {[%emt 0:00:31]} Ke5 {[%emt 0:00:02]} 42. Qe7+ {[%emt 0:00:27]} Kd4 {[%emt 0:01:11]} 43. Rh4+ {[%emt 0:00:21]} Nf4 {[%emt 0:00:15]} 44. Qf6+ {[%emt 0:00:43]} Kc5 {[%emt 0:00:17]} 45. Qxf4 {[%emt 0:00:45]} Qd1+ {[%emt 0:00:29]} 46. Qc1 {[%emt 0:00:03]} Qxd5 {[%emt 0:00:05]} 47. Rh8 {[%emt 0:00:57]} f5 {[%emt 0:02:08]} 48. Rc8+ {[%emt 0:00:14]} Kb5 {[%emt 0:00:04]} 49. Rb8+ {[%emt 0:00:22]} Kc5 {[%emt 0:00:17]} 50. Qe3+ {[%emt 0:00:17]} Kc6 {[%emt 0:00:28]} 51. Qb6+ 1-0

[Event "84th ESP-ch 2019"]
[Site "Marbella"]
[Date "2019.11.23"]
[Round "8.31"]
[White "Roman Lopez, Jesus"]
[Black "Silva Lucena, Cristian"]
[Result "0-1"]
[ECO "C55"]
[WhiteElo "1993"]
[BlackElo "2244"]
[Annotator "NA"]
[PlyCount "68"]
[EventDate "2019.11.16"]
[EventType "swiss"]
[EventCountry "ESP"]
[SourceTitle "playchess.com"]
[Source "ChessBase"]
[SourceQuality "1"]
[TimeControl "5400+30"]

1. e4 e5 2. Nf3 {[%emt 0:09:54]} Nc6 {[%emt 0:00:00]} 3. Bc4 {[%emt 0:01:47]} Nf6 {[%emt 0:00:00]} 4. d3 {[%emt 0:00:25]} h6 {[%emt 0:00:31]} 5. c3 {[%emt 0:00:25]} d6 {[%emt 0:00:07]} 6. h3 {[%emt 0:00:10]} g6 {[%emt 0:00:13]} 7. Be3 {[%emt 0:00:26]} Bg7 {[%emt 0:00:06]} 8. Bb3 {[%emt 0:00:21]} d5 {[%emt 0:00:44]} 9. exd5 {[%emt 0:06:40]} Nxd5 {[%emt 0:00:22]} 10. Qe2 {[%emt 0:10:11]} O-O {[%emt 0:01:45]} 11. O-O {[%emt 0:00:14]} Kh7 {[%emt 0:01:18]} 12. Na3 {[%emt 0:04:26]} f5 {[%emt 0:01:00]} 13. Rad1 {[%emt 0:07:08]} Be6 {[%emt 0:06:33]} 14. Rfe1 {[%emt 0:03:09]} Qf6 {[%emt 0:01:56]} 15. Bc1 {[%emt 0:08:02]} Rae8 {[%emt 0:02:07]} 16. Nc4 {[%emt 0:06:10]} Bf7 {[%emt 0:01:20]} 17. Ba4 {[%emt 0:02:36]} e4 {[%emt 0:02:22]} 18. Nd4 {[%emt 0:00:51]} Nxd4 {[%emt 0:04:47]} 19. cxd4 {[%emt 0:00:34]} exd3 {[%emt 0:00:41]} 20. Qxd3 {[%emt 0:03:18]} Rxe1+ {[%emt 0:01:01]} 21. Rxe1 {[%emt 0:00:01]} Qa6 {[%emt 0:04:01]} 22. Bb3 {[%emt 0:05:08]} Nb4 {[%emt 0:01:11]} 23. Qd2 {[%emt 0:03:39]} Nxa2 {[%emt 0:02:14]} 24. Bxa2 {[%emt 0:01:13]} Qxa2 {[%emt 0:01:31]} 25. Ne5 {[%emt 0:01:30]} Qd5 {[%emt 0:02:59]} 26. Re3 {[%emt 0:12:22]} Rd8 {[%emt 0:02:36]} 27. Nxf7 {[%emt 0:00:51]} Qxf7 {[%emt 0:00:09]} 28. Qb4 {[%emt 0:01:24]} Rxd4 {[%emt 0:00:41]} 29. Re7 {[%emt 0:03:04]} Rxb4 {[%emt 0:04:53]} 30. Rxf7 {[%emt 0:00:02]} Rc4 {[%emt 0:00:38]} 31. Bd2 {[%emt 0:00:45]} Kg8 {[%emt 0:00:10]} 32. Rd7 {[%emt 0:00:16]} Rd4 {[%emt 0:00:13]} 33. Rxg7+ {[%emt 0:00:17]} Kxg7 {[%emt 0:00:15]} 34. Bc3 {[%emt 0:00:01]} c5 {[%emt 0:00:07]} 0-1

[Event "84th ESP-ch 2019"]
[Site "Marbella"]
[Date "2019.11.23"]
[Round "8.32"]
[White "Hernandez Roldan, Miguel"]
[Black "Medina Romero, Jose"]
[Result "1/2-1/2"]
[ECO "B06"]
[WhiteElo "2229"]
[BlackElo "2083"]
[Annotator "ChessBase"]
[PlyCount "189"]
[EventDate "2019.11.16"]
[EventType "swiss"]
[EventCountry "ESP"]
[SourceTitle "playchess.com"]
[Source "ChessBase"]
[SourceQuality "1"]
[TimeControl "5400+30"]

1. e4 {[%emt 0:00:00]} g6 {[%emt 0:00:00]} 2. d4 {[%emt 0:00:00]} Bg7 {[%emt 0:00:00]} 3. Nc3 {[%emt 0:00:00]} c6 {[%emt 0:00:00]} 4. Bc4 {[%emt 0:00:35]} d5 {[%emt 0:00:00]} 5. exd5 {[%emt 0:09:15]} b5 {[%emt 0:00:06]} 6. Bb3 {[%emt 0:04:30]} b4 {[%emt 0:00:08]} 7. Nce2 {[%emt 0:00:08]} cxd5 8. a3 {[%emt 0:02:05]} bxa3 {[%emt 0:01:19]} 9. Rxa3 {[%emt 0:00:02]} Nf6 {[%emt 0:00:11]} 10. Nf3 {[%emt 0:00:51]} O-O {[%emt 0:00:15]} 11. O-O {[%emt 0:00:36]} Nc6 {[%emt 0:03:14]} 12. Ne5 {[%emt 0:08:36]} Bb7 {[%emt 0:00:33]} 13. Nd3 {[%emt 0:06:00]} Qb6 {[%emt 0:20:35]} 14. c3 {[%emt 0:05:39]} Rfd8 {[%emt 0:20:22]} 15. Nef4 {[%emt 0:01:06]} Rac8 {[%emt 0:08:25]} 16. Ba2 {[%emt 0:01:44]} Ba6 {[%emt 0:01:52]} 17. Re1 {[%emt 0:02:18]} Bc4 {[%emt 0:04:51]} 18. Be3 {[%emt 0:10:45]} Bxa2 {[%emt 0:03:27]} 19. Rxa2 {[%emt 0:00:08]} e6 {[%emt 0:03:46]} 20. Nc5 {[%emt 0:00:42]} a5 {[%emt 0:00:15]} 21. Nfd3 {[%emt 0:00:26]} h6 {[%emt 0:06:09]} 22. Qd2 {[%emt 0:02:37]} Kh7 {[%emt 0:00:10]} 23. Rea1 {[%emt 0:00:17]} Ra8 {[%emt 0:00:15]} 24. Bf4 {[%emt 0:00:24]} Ne4 {[%emt 0:01:01]} 25. Qc2 {[%emt 0:00:53]} Nxc5 {[%emt 0:00:27]} 26. Nxc5 {[%emt 0:00:36]} e5 {[%emt 0:01:41]} 27. Na4 {[%emt 0:00:46]} Qc7 {[%emt 0:01:07]} 28. dxe5 {[%emt 0:00:45]} Nb4 {[%emt 0:00:40]} 29. e6 {[%emt 0:03:47]} Qc6 {[%emt 0:00:28]} 30. Qb3 {[%emt 0:01:53]} Nxa2 {[%emt 0:00:19]} 31. exf7 {[%emt 0:00:05]} Nxc3 32. bxc3 {[%emt 0:01:19]} Qf6 {[%emt 0:03:17]} 33. Bc7 {[%emt 0:00:17]} Rf8 {[%emt 0:00:59]} 34. Qxd5 {[%emt 0:01:07]} Rxf7 {[%emt 0:00:17]} 35. Bb6 {[%emt 0:00:22]} Re8 {[%emt 0:00:59]} 36. Qxa5 {[%emt 0:01:10]} Rfe7 {[%emt 0:00:27]} 37. Be3 {[%emt 0:00:39]} h5 {[%emt 0:01:01]} 38. Rf1 {[%emt 0:00:42]} Bh6 {[%emt 0:00:24]} 39. Bd4 {[%emt 0:00:07]} Qc6 {[%emt 0:02:57]} 40. Nb6 {[%emt 0:02:08]} Bg7 {[%emt 0:02:57]} 41. Qd5 {[%emt 0:00:44]} Qxd5 {[%emt 0:01:52]} 42. Nxd5 {[%emt 0:00:02]} Re1 {[%emt 0:00:41]} 43. Nf6+ {[%emt 0:00:15]} Bxf6 {[%emt 0:00:10]} 44. Bxf6 {[%emt 0:00:02]} R8e6 {[%emt 0:00:46]} 45. Bd4 {[%emt 0:00:53]} Rxf1+ {[%emt 0:00:41]} 46. Kxf1 {[%emt 0:00:02]} g5 {[%emt 0:00:11]} 47. g3 {[%emt 0:01:49]} Kg6 {[%emt 0:00:25]} 48. h3 {[%emt 0:01:03]} Kf5 {[%emt 0:00:22]} 49. Kg2 {[%emt 0:00:10]} Re1 {[%emt 0:01:48]} 50. Kf3 {[%emt 0:00:15]} Rg1 {[%emt 0:01:07]} 51. Be3 {[%emt 0:00:37]} g4+ {[%emt 0:04:04]} 52. hxg4+ {[%emt 0:00:03]} hxg4+ {[%emt 0:00:12]} 53. Ke2 {[%emt 0:00:02]} Ke4 {[%emt 0:00:29]} 54. Kd2 {[%emt 0:00:00]} Ra1 {[%emt 0:01:41]} 55. c4 {[%emt 0:00:33]} Ra3 {[%emt 0:01:16]} 56. Bc5 {[%emt 0:00:21]} Ra5 {[%emt 0:00:30]} 57. Bb6 {[%emt 0:00:20]} Rf5 {[%emt 0:00:37]} 58. Kc3 {[%emt 0:00:14]} Rf6 {[%emt 0:00:28]} 59. Be3 {[%emt 0:00:24]} Rf7 {[%emt 0:00:55]} 60. Kb4 {[%emt 0:00:30]} Kd3 61. Kb5 {[%emt 0:00:48]} Ke4 {[%emt 0:02:14]} 62. Kc6 {[%emt 0:00:10]} Rf6+ {[%emt 0:00:29]} 63. Kd7 {[%emt 0:00:38]} Rf7+ {[%emt 0:00:11]} 64. Kd6 {[%emt 0:00:39]} Rf6+ {[%emt 0:00:09]} 65. Kc5 {[%emt 0:03:07]} Rf5+ {[%emt 0:00:53]} 66. Kb4 {[%emt 0:00:56]} Rf8 {[%emt 0:00:18]} 67. Bf4 {[%emt 0:01:29]} Kd4 {[%emt 0:00:39]} 68. Bd6 {[%emt 0:01:37]} Rf6 {[%emt 0:01:15]} 69. Bc5+ {[%emt 0:00:34]} Ke5 {[%emt 0:02:09]} 70. Kb5 {[%emt 0:00:07]} Rg6 {[%emt 0:00:39]} 71. Ba7 {[%emt 0:00:34]} Kd6 {[%emt 0:00:22]} 72. Bb8+ {[%emt 0:00:12]} Kd7 {[%emt 0:00:16]} 73. Bf4 {[%emt 0:00:46]} Rc6 {[%emt 0:00:58]} 74. Be5 {[%emt 0:00:46]} Re6 {[%emt 0:00:19]} 75. Bf4 {[%emt 0:00:45]} Rc6 {[%emt 0:00:05]} 76. Kb4 {[%emt 0:00:06]} Rc8 {[%emt 0:00:10]} 77. Kc3 {[%emt 0:00:06]} Ke6 {[%emt 0:01:07]} 78. Be3 {[%emt 0:00:07]} Rd8 {[%emt 0:01:09]} 79. Bd4 {[%emt 0:00:07]} Rd7 {[%emt 0:00:20]} 80. Kd3 {[%emt 0:00:05]} Rc7 {[%emt 0:01:02]} 81. Be3 {[%emt 0:00:30]} Rc8 {[%emt 0:00:24]} 82. Kd4 {[%emt 0:00:06]} Rc7 {[%emt 0:00:47]} 83. c5 {[%emt 0:00:19]} Ra7 84. Ke4 {[%emt 0:00:18]} Ra4+ {[%emt 0:00:49]} 85. Bd4 {[%emt 0:00:03]} Rb4 {[%emt 0:00:15]} 86. Ke3 {[%emt 0:02:35]} Kd5 {[%emt 0:00:10]} 87. Bg7 {[%emt 0:00:06]} Re4+ {[%emt 0:00:12]} 88. Kd3 {[%emt 0:00:14]} Ra4 {[%emt 0:00:44]} 89. Bf8 {[%emt 0:01:14]} Ra3+ {[%emt 0:00:17]} 90. Ke2 {[%emt 0:00:04]} Ra2+ {[%emt 0:00:15]} 91. Ke3 {[%emt 0:00:33]} Ra3+ {[%emt 0:00:12]} 92. Ke2 {[%emt 0:00:11]} Ra2+ {[%emt 0:00:07]} 93. Ke3 {[%emt 0:01:03]} Ra3+ {[%emt 0:00:08]} 94. Ke2 {[%emt 0:00:41]} Ra2+ {[%emt 0:00:48]} 95. Ke3 1/2-1/2

[Event "84th ESP-ch 2019"]
[Site "Marbella"]
[Date "2019.11.23"]
[Round "8.33"]
[White "Rey Malde, Henrique"]
[Black "Aguado Doncel, Pablo Luis"]
[Result "1-0"]
[ECO "C24"]
[WhiteElo "2209"]
[BlackElo "2062"]
[Annotator "ChessBase"]
[PlyCount "85"]
[EventDate "2019.11.16"]
[EventType "swiss"]
[EventCountry "ESP"]
[SourceTitle "playchess.com"]
[Source "ChessBase"]
[SourceQuality "1"]
[TimeControl "5400+30"]

1. e4 {[%emt 0:00:00]} e5 {[%emt 0:00:00]} 2. Bc4 {[%emt 0:00:33]} Nf6 {[%emt 0:00:21]} 3. d3 {[%emt 0:00:06]} c6 {[%emt 0:00:47]} 4. Nf3 {[%emt 0:01:35]} d5 {[%emt 0:02:24]} 5. Bb3 {[%emt 0:00:04]} Bd6 {[%emt 0:04:00]} 6. Nc3 {[%emt 0:04:01]} d4 {[%emt 0:08:26]} 7. Ne2 {[%emt 0:00:08]} O-O {[%emt 0:00:09]} 8. O-O {[%emt 0:01:28]} Nbd7 {[%emt 0:01:06]} 9. c3 {[%emt 0:06:56]} c5 {[%emt 0:00:55]} 10. Ng3 {[%emt 0:00:38]} b5 {[%emt 0:01:46]} 11. Nf5 {[%emt 0:21:54]} Nb6 {[%emt 0:02:43]} 12. cxd4 {[%emt 0:04:36]} cxd4 {[%emt 0:01:25]} 13. Bg5 {[%emt 0:01:27]} a5 {[%emt 0:12:19]} 14. a3 {[%emt 0:00:39]} a4 {[%emt 0:00:43]} 15. Ba2 {[%emt 0:00:12]} Bxf5 {[%emt 0:07:24]} 16. exf5 {[%emt 0:00:08]} Qd7 {[%emt 0:04:01]} 17. Bxf6 {[%emt 0:01:54]} gxf6 {[%emt 0:00:01]} 18. Nh4 {[%emt 0:00:10]} Rfc8 {[%emt 0:01:18]} 19. Rc1 {[%emt 0:07:21]} b4 {[%emt 0:02:41]} 20. axb4 {[%emt 0:01:00]} a3 {[%emt 0:02:45]} 21. bxa3 {[%emt 0:07:52]} Rxa3 {[%emt 0:00:43]} 22. Rxc8+ {[%emt 0:01:44]} Qxc8 {[%emt 0:01:15]} 23. Qg4+ {[%emt 0:16:41]} Kf8 {[%emt 0:00:56]} 24. Bb1 {[%emt 0:00:39]} Nd5 {[%emt 0:01:46]} 25. Qh5 {[%emt 0:00:30]} Kg8 {[%emt 0:05:54]} 26. Qg4+ {[%emt 0:00:24]} Kh8 {[%emt 0:01:37]} 27. Qh5 {[%emt 0:01:15]} Qc7 {[%emt 0:14:49]} 28. b5 {[%emt 0:00:55]} Nc3 {[%emt 0:05:06]} 29. b6 {[%emt 0:02:20]} Qb7 {[%emt 0:07:38]} 30. Bc2 {[%emt 0:00:05]} Qd5 {[%emt 0:00:26]} 31. Qh6 {[%emt 0:01:26]} Be7 {[%emt 0:00:28]} 32. Bd1 {[%emt 0:06:26]} Nxd1 {[%emt 0:02:07]} 33. Rxd1 {[%emt 0:00:04]} Rb3 {[%emt 0:00:41]} 34. Rc1 {[%emt 0:02:19]} Rc3 {[%emt 0:03:34]} 35. Rb1 {[%emt 0:01:17]} Rxd3 {[%emt 0:01:37]} 36. Ng6+ {[%emt 0:02:46]} fxg6 {[%emt 0:00:05]} 37. fxg6 {[%emt 0:00:03]} Qg8 {[%emt 0:01:07]} 38. b7 {[%emt 0:00:14]} Bf8 {[%emt 0:01:32]} 39. gxh7 {[%emt 0:03:06]} Qb3 {[%emt 0:00:27]} 40. Qc1 {[%emt 0:00:38]} Bd6 {[%emt 0:01:07]} 41. Rxb3 {[%emt 0:00:34]} Rxb3 {[%emt 0:00:01]} 42. Qc8+ {[%emt 0:00:18]} Kxh7 {[%emt 0:00:05]} 43. Qc2+ {[%emt 0:00:04]} 1-0

[Event "84th ESP-ch 2019"]
[Site "Marbella"]
[Date "2019.11.23"]
[Round "8.34"]
[White "Lopez Guerrero, Jose Miguel"]
[Black "Represa Perez, Mireya"]
[Result "1/2-1/2"]
[ECO "B51"]
[WhiteElo "2085"]
[BlackElo "2189"]
[Annotator "ChessBase"]
[PlyCount "150"]
[EventDate "2019.11.16"]
[EventType "swiss"]
[EventCountry "ESP"]
[SourceTitle "playchess.com"]
[Source "ChessBase"]
[SourceQuality "1"]
[TimeControl "5400+30"]

1. e4 {[%emt 0:00:00]} c5 {[%emt 0:00:00]} 2. Nf3 {[%emt 0:00:00]} d6 {[%emt 0:00:00]} 3. Bb5+ {[%emt 0:00:00]} Nd7 {[%emt 0:00:00]} 4. a4 {[%emt 0:00:00]} Ngf6 {[%emt 0:01:24]} 5. Qe2 {[%emt 0:00:11]} a6 {[%emt 0:00:27]} 6. Bd3 {[%emt 0:00:29]} b6 {[%emt 0:05:53]} 7. b3 {[%emt 0:07:56]} Bb7 {[%emt 0:01:00]} 8. Bb2 {[%emt 0:00:08]} e6 {[%emt 0:01:38]} 9. Na3 {[%emt 0:01:29]} Be7 {[%emt 0:02:36]} 10. g4 {[%emt 0:00:14]} e5 {[%emt 0:09:58]} 11. O-O-O {[%emt 0:03:22]} Nf8 {[%emt 0:06:06]} 12. Ne1 {[%emt 0:01:01]} Ne6 {[%emt 0:00:47]} 13. f3 {[%emt 0:02:27]} Nd4 {[%emt 0:09:26]} 14. Qf1 {[%emt 0:01:01]} Qc7 {[%emt 0:11:48]} 15. Ng2 {[%emt 0:04:09]} d5 {[%emt 0:03:56]} 16. g5 {[%emt 0:04:59]} Nh5 {[%emt 0:02:22]} 17. exd5 {[%emt 0:00:31]} Bxd5 {[%emt 0:02:51]} 18. Bxa6 {[%emt 0:03:28]} Bxg5 {[%emt 0:06:02]} 19. Nb5 {[%emt 0:02:41]} Qd8 {[%emt 0:00:57]} 20. Nxd4 {[%emt 0:02:24]} cxd4 {[%emt 0:01:42]} 21. Bb5+ {[%emt 0:01:53]} Kf8 {[%emt 0:00:34]} 22. Rg1 {[%emt 0:00:26]} g6 {[%emt 0:02:29]} 23. Qe2 {[%emt 0:01:44]} Qc7 {[%emt 0:01:16]} 24. Kb1 {[%emt 0:05:34]} Rc8 {[%emt 0:02:05]} 25. c4 {[%emt 0:01:39]} Be6 {[%emt 0:08:33]} 26. Rde1 {[%emt 0:01:12]} f6 {[%emt 0:01:56]} 27. Ka2 {[%emt 0:00:27]} Bh3 {[%emt 0:00:54]} 28. Rc1 {[%emt 0:00:42]} Kg7 {[%emt 0:04:00]} 29. Ba3 {[%emt 0:07:59]} d3 {[%emt 0:02:00]} 30. Qf2 {[%emt 0:01:14]} Bxg2 {[%emt 0:00:18]} 31. Rxg2 {[%emt 0:00:24]} Nf4 {[%emt 0:00:36]} 32. Rxg5 {[%emt 0:00:24]} fxg5 {[%emt 0:02:16]} 33. Qe3 {[%emt 0:01:10]} Rhd8 {[%emt 0:01:57]} 34. Bb2 {[%emt 0:00:52]} Kf6 {[%emt 0:00:21]} 35. h4 {[%emt 0:00:22]} h6 {[%emt 0:01:07]} 36. Re1 {[%emt 0:05:19]} Ne2 {[%emt 0:00:12]} 37. b4 {[%emt 0:01:22]} Qd6 {[%emt 0:00:48]} 38. Ka1 {[%emt 0:01:59]} Rc7 {[%emt 0:02:34]} 39. hxg5+ {[%emt 0:00:32]} hxg5 {[%emt 0:00:08]} 40. a5 {[%emt 0:08:12]} Re7 {[%emt 0:03:06]} 41. Qxb6 {[%emt 0:01:30]} Qxb6 {[%emt 0:00:44]} 42. axb6 {[%emt 0:00:01]} Nd4 {[%emt 0:00:24]} 43. Bxd4 {[%emt 0:01:37]} Rxd4 {[%emt 0:01:30]} 44. Rb1 {[%emt 0:00:27]} e4 {[%emt 0:02:40]} 45. fxe4 {[%emt 0:00:13]} Rexe4 {[%emt 0:00:24]} 46. b7 {[%emt 0:00:28]} Rd8 {[%emt 0:00:04]} 47. c5 {[%emt 0:00:42]} Ke7 {[%emt 0:00:24]} 48. Rb3 {[%emt 0:02:05]} Red4 {[%emt 0:00:32]} 49. Bxd3 {[%emt 0:03:38]} Kd7 {[%emt 0:00:13]} 50. Bxg6 {[%emt 0:03:05]} Kc7 {[%emt 0:00:24]} 51. d3 {[%emt 0:00:09]} Kxb7 {[%emt 0:00:45]} 52. Be4+ {[%emt 0:00:02]} Kb8 {[%emt 0:00:46]} 53. Kb2 {[%emt 0:02:02]} g4 {[%emt 0:00:39]} 54. Kc3 {[%emt 0:00:17]} R4d7 {[%emt 0:00:43]} 55. b5 {[%emt 0:00:29]} g3 {[%emt 0:00:34]} 56. Rb2 {[%emt 0:00:56]} Rg7 {[%emt 0:00:35]} 57. b6 {[%emt 0:00:38]} Rdg8 {[%emt 0:00:26]} 58. Ra2 {[%emt 0:00:51]} Kc8 {[%emt 0:00:02]} 59. c6 {[%emt 0:00:30]} Kd8 {[%emt 0:00:01]} 60. Bg2 {[%emt 0:03:59]} Ke7 {[%emt 0:00:44]} 61. Ra4 {[%emt 0:02:57]} Kd6 {[%emt 0:00:59]} 62. Rc4 {[%emt 0:00:54]} Rc8 {[%emt 0:00:48]} 63. b7 {[%emt 0:00:29]} Rf8 {[%emt 0:00:23]} 64. Ra4 {[%emt 0:01:29]} Kc7 {[%emt 0:00:25]} 65. d4 {[%emt 0:01:32]} Re7 {[%emt 0:00:40]} 66. Kd3 {[%emt 0:01:31]} Re1 {[%emt 0:00:26]} 67. d5 {[%emt 0:01:33]} Rd1+ {[%emt 0:00:23]} 68. Kc2 {[%emt 0:03:08]} Rg1 {[%emt 0:00:39]} 69. d6+ {[%emt 0:01:40]} Kxd6 {[%emt 0:00:18]} 70. Rd4+ {[%emt 0:00:05]} Kc7 {[%emt 0:00:38]} 71. Rd7+ {[%emt 0:00:37]} Kb6 {[%emt 0:00:06]} 72. Rd2 {[%emt 0:00:39]} Kc7 {[%emt 0:01:00]} 73. Rd7+ {[%emt 0:00:44]} Kb6 {[%emt 0:00:01]} 74. Rd2 {[%emt 0:00:01]} Kc7 {[%emt 0:01:02]} 75. Rd7+ {[%emt 0:00:02]} Kb6 {[%emt 0:00:13]} 1/2-1/2

[Event "84th ESP-ch 2019"]
[Site "Marbella"]
[Date "2019.11.23"]
[Round "8.35"]
[White "Antonano Fedz-Quincoces, Avelino"]
[Black "Donado-Mazarron Gomez, Miguel"]
[Result "1/2-1/2"]
[ECO "B91"]
[WhiteElo "2021"]
[BlackElo "2171"]
[Annotator "ChessBase"]
[PlyCount "69"]
[EventDate "2019.11.16"]
[EventType "swiss"]
[EventCountry "ESP"]
[SourceTitle "playchess.com"]
[Source "ChessBase"]
[SourceQuality "1"]
[TimeControl "5400+30"]

1. e4 {[%emt 0:00:00]} c5 {[%emt 0:00:00]} 2. Nf3 {[%emt 0:00:00]} d6 {[%emt 0:00:00]} 3. d4 {[%emt 0:00:00]} cxd4 {[%emt 0:00:00]} 4. Nxd4 {[%emt 0:00:05]} Nf6 {[%emt 0:00:00]} 5. Nc3 {[%emt 0:00:17]} a6 {[%emt 0:00:00]} 6. g3 {[%emt 0:00:18]} e5 7. Nb3 {[%emt 0:00:12]} Nbd7 {[%emt 0:02:08]} 8. a4 {[%emt 0:00:36]} b6 {[%emt 0:01:26]} 9. Bg2 {[%emt 0:00:15]} Bb7 {[%emt 0:00:22]} 10. O-O {[%emt 0:00:12]} Rc8 {[%emt 0:01:01]} 11. Re1 {[%emt 0:00:31]} Rc7 {[%emt 0:07:08]} 12. Bg5 Be7 {[%emt 0:05:34]} 13. Nd2 {[%emt 0:10:06]} Qa8 {[%emt 0:01:19]} 14. Nf1 {[%emt 0:01:23]} Rxc3 {[%emt 0:07:13]} 15. Bxf6 {[%emt 0:07:30]} Nxf6 {[%emt 0:00:37]} 16. bxc3 {[%emt 0:00:26]} Nxe4 {[%emt 0:03:44]} 17. Ne3 {[%emt 0:06:49]} d5 {[%emt 0:05:35]} 18. Bxe4 {[%emt 0:04:49]} dxe4 {[%emt 0:00:37]} 19. Nf5 {[%emt 0:01:38]} Qb8 {[%emt 0:06:21]} 20. Nxe7 {[%emt 0:04:16]} Kxe7 {[%emt 0:00:25]} 21. Qg4 {[%emt 0:01:41]} g6 {[%emt 0:00:49]} 22. Rad1 {[%emt 0:01:04]} Qc7 {[%emt 0:01:07]} 23. Rd2 {[%emt 0:27:44]} Qc6 {[%emt 0:09:37]} 24. Red1 {[%emt 0:01:35]} Bc8 {[%emt 0:12:08]} 25. Qh4+ {[%emt 0:02:56]} f6 {[%emt 0:00:53]} 26. Qh6 {[%emt 0:00:12]} Kf7 {[%emt 0:03:53]} 27. Rd8 {[%emt 0:02:47]} Rxd8 {[%emt 0:02:35]} 28. Qxh7+ {[%emt 0:00:15]} Ke6 {[%emt 0:00:12]} 29. Rxd8 {[%emt 0:01:08]} e3 {[%emt 0:00:18]} 30. g4 {[%emt 0:25:38]} e2 {[%emt 0:09:01]} 31. Qg8+ {[%emt 0:00:03]} Ke7 {[%emt 0:00:06]} 32. Qf8+ {[%emt 0:00:06]} Ke6 {[%emt 0:00:04]} 33. Qg8+ {[%emt 0:00:10]} Ke7 {[%emt 0:00:04]} 34. Qf8+ {[%emt 0:00:07]} Ke6 {[%emt 0:00:04]} 35. Qg8+ {[%emt 0:02:10]} 1/2-1/2